Cogmind - Beta 14 @@@ ROGUE MODE // 2024.10.08 @ 00:48:03 Player: Raisen Result: Self-destructed Performance ------------- Evolutions (2) 1000 Regions Visited (3) 600 Robots Destroyed (8) 40 Value Destroyed (135) 135 Prototype IDs (3) 60 Alien Tech Used (0) 0 Bonus (0) 0 TOTAL SCORE: 1835 Bonus ------- None Cogmind --------- Core Integrity 272/550 Matter 230/300 Energy 75/100 System Corruption 0% Temperature Cool (0) Movement Core (50) Location -8/Materials Parts ------- > --- POWER (1) -------- (None) > --- PROPULSION (2) --- (None) > --- UTILITY (4) ------ System Shield > --- WEAPON (4) ------- (None) > --- INVENTORY (5) ---- Huge Storage Unit Weight Redist. System Weight Redist. System Peak State ------------ > --- POWER ------------ (None) > --- PROPULSION ------- Wheel > --- UTILITY ---------- Medium Matter Pod Large Matter Pod Improved Sensor Array System Shield > --- WEAPON ----------- Heavy Particle Gun > --- INVENTORY -------- Huge Storage Unit Weight Redist. System Weight Redist. System [Rating: 13] Favorites ----------- Power Ion Engine Engine Ion Engine Propulsion Aluminum Leg Leg Aluminum Leg Wheel Wheel Utility Small Storage Unit Device Seismic Detector Storage Small Storage Unit Hackware System Shield Weapon Small Laser Energy Gun Small Laser Energy Cannon Ion Cannon Ballistic Gun Light Assault Rifle Special Weapon Mining Laser Build | -11 -10 -10 -8 ------- Run | Yrd Mat Sub Mat Slots Evolved 4 | . . . 4 Power . | . . . . Propulsion . | . . . . Utility 2 | . . . 2 Weapon 2 | . . . 2 Parts Attached 27 | 7 5 8 7 Power 5 | 1 1 3 . Engine 5 | 1 1 3 . Core . | . . . . Reactor . | . . . . Propulsion 3 | 2 . . 1 Treads . | . . . . Leg 2 | 2 . . . Wheel 1 | . . . 1 Hover . | . . . . Flight . | . . . . Utility 8 | 2 . 2 4 Device 4 | 1 . . 3 Storage 3 | 1 . 2 . Processor . | . . . . Hackware 1 | . . . 1 Protection . | . . . . Artifact . | . . . . Weapon 11 | 2 4 3 2 Energy Gun 5 | 1 2 1 1 Energy Cannon 1 | . . . 1 Ballistic Gun 2 | 1 . 1 . Ballistic Cannon . | . . . . Launcher . | . . . . Special Weapon 3 | . 2 1 . Impact Weapon . | . . . . Slashing Weapon . | . . . . Piercing Weapon . | . . . . Special Melee Weapon . | . . . . Unidentified Prototypes 1 | . . . 1 Parts Lost 17 | . . 12 5 Power 4 | . . 4 . Propulsion 3 | . . 2 1 Utility 5 | . . 2 3 Weapon 5 | . . 4 1 Highest Loss Streak 9 | . . 9 5 To Critical Strikes . | . . . . Average Slot Usage (%) 85 | . 100 64 34 Engine 12 | . 14 13 . Leg 21 | . 28 13 . Device 11 | . 14 6 7 Storage 13 | . 14 12 13 Energy Gun 14 | . 17 13 1 Ballistic Gun 4 | . 5 2 . Special Weapon 3 | . 4 1 . Peak Build Rating 13 | 7 7 7 13 Average Rating 6 | 5 7 4 6 On Entrance 4 | . 7 7 2 Naked Turns 1 | . . 1 . Heaviest Build 13 | 11 13 13 9 Greatest Support 20 | 20 20 20 16 Greatest Overweight (x) 2 | 2 . 2 2 Average Overweight (x) . | . . . . Largest Inventory Capacity 8 | 8 8 8 5 Average Capacity 7 | 7 8 6 5 Most Carried 8 | 7 8 8 4 Average Carried 6 | 1 7 5 1 Final Capacity 8 | 8 8 5 5 Final Carried 8 | 7 8 . 3 Class Distribution -------------------- 100% | Mutant Dominant Class ---------------- Mutant | -10/Materials Mutant | -10/Subcaves Mutant | -8/Materials Resources | -11 -10 -10 -8 ----------- Run | Yrd Mat Sub Mat Matter Collected 335 | 282 44 . 9 Remotely . | . . . . Salvage Created 265 | 135 44 34 52 Parts 24 | 8 6 3 7 Haulers Intercepted . | . . . . Recyclers Shooed 2 | 1 1 . . Parts Field Recycled . | . . . . Retrieved Matter . | . . . . Parts Self-Destructed 5 | . . 5 . Prevented . | . . . . Kills | -11 -10 -10 -8 ------- Run | Yrd Mat Sub Mat Combat Hostiles Destroyed 5 | . 3 1 1 Guns 4 | . 3 1 . Cannons 1 | . . . 1 Classes Destroyed 5 | 2 1 1 1 Tunneler 2 | 2 . . . Recycler 1 | 1 . . . Swarmer 3 | . 3 . . Sentry 1 | . . . 1 Subdweller 1 | . . 1 . Best Kill Streak 3 | 1 3 1 1 Combat Bots Only 3 | . 3 1 1 Max Kills in Single Turn 1 | 1 1 1 1 Gunslinging . | . . . . Exploded . | . . . . Melee . | . . . . Uniques/NPCs Destroyed . | . . . . Combat | -11 -10 -10 -8 -------- Run | Yrd Mat Sub Mat Hostile Shots Fired 102 | . 27 55 20 Missed 34 | . 9 18 7 Damage Taken 1610 | . 149 950 511 Core 526 | . 45 203 278 Absorbed by Shields . | . . . . Core Remaining (%) 50 | 100 . . . Volleys Fired 68 | 12 32 14 10 Largest 2 | 2 2 2 1 Hottest 100 | 60 100 60 60 Shots Fired 106 | 24 44 28 10 Gun 76 | 24 24 28 . Cannon 10 | . . . 10 Launcher . | . . . . Special 20 | . 20 . . Kinetic 26 | 12 . 14 . Thermal 80 | 12 44 14 10 Explosive . | . . . . Electromagnetic . | . . . . Robot Hit Streak 14 | 5 4 13 14 Robot Miss Streak 3 | 3 2 1 3 Penetration Max . | . . . . Secondary Targets . | . . . . Shots Hit Robots 59 | 13 15 25 6 Core Hits 13 | 5 3 3 2 Critical Kills . | . . . . Critical Parts Destroyed . | . . . . Critical Strikes . | . . . . Melee Attacks . | . . . . Impact . | . . . . Slashing . | . . . . Piercing . | . . . . Sneak Attacks . | . . . . Combat Hostiles . | . . . . Follow-up Attacks . | . . . . Damage Inflicted 663 | 137 157 232 137 Guns 522 | 137 157 228 . Cannons 137 | . . . 137 Explosions . | . . . . Melee . | . . . . Ramming 4 | . . 4 . Kinetic 169 | 81 . 88 . Thermal 490 | 56 157 140 137 Explosive . | . . . . Electromagnetic . | . . . . Impact . | . . . . Slashing . | . . . . Piercing . | . . . . Highest Corruption 2 | . . 2 . Average Corruption 2 | . . 2 . Corruption Purged . | . . . . Corruption Blocked . | . . . . Effects 1 | . . 1 . Message Errors 1 | . . 1 . Overload Shots . | . . . . Overflow Damage . | . . . . Projectiles . | . . . . Explosions . | . . . . Melee . | . . . . Knockbacks . | . . . . Impact . | . . . . Kinetic . | . . . . Secondary . | . . . . Self-Inflicted Damage 1 | . . 1 . Shots . | . . . . Rammed 2 | . . 2 . Targets Rammed 2 | . . 2 . Kicked . | . . . . Crushed . | . . . . Highest Temperature 239 | 20 198 239 8 Average Temperature 52 | 14 52 124 4 Received Heat Transfer 414 | . . 405 9 Siege Activations . | . . . . Robots Corrupted . | . . . . Combat Hostiles . | . . . . Parts Fried . | . . . . Impact Corruptions . | . . . . Robots Melted . | . . . . Combat Hostiles . | . . . . Parts Melted 1 | . 1 . . Heat Transferred 1047 | 125 375 325 222 Parts Sabotaged . | . . . . Parts Stolen . | . . . . Parts Stripped . | . . . . Power Chain Reactions . | . . . . Alert | -11 -10 -10 -8 ------- Run | Yrd Mat Sub Mat Peak Influence 137 | 15 137 . 30 Initial 9 | . 9 . . Average 20 | 6 26 . 6 Maximum Alert Level . | . . . . Low Security (%) 100 | 100 100 . 100 Level 1 . | . . . . Level 2 . | . . . . Level 3 . | . . . . Level 4 . | . . . . Level 5 . | . . . . High Security . | . . . . Max Security . | . . . . Squads Dispatched 3 | . . . 3 Investigation 1 | . . . 1 Extermination . | . . . . Reinforcement 2 | . . . 2 Assault . | . . . . Garrison . | . . . . Intercept . | . . . . Searches Triggered . | . . . . Construction Impeded . | . . . . Haulers Reinforced . | . . . . Active Scanning Responses . | . . . . Cargo Convoy Interrupts . | . . . . Stealth | -11 -10 -10 -8 --------- Run | Yrd Mat Sub Mat Distress Signals . | . . . . Communications Jammed . | . . . . Distress Signals . | . . . . Times Spotted 13 | . 5 6 2 Peak Tracking Total 3 | . 3 3 2 Tactical Retreats 2 | . 1 1 . Traps | -11 -10 -10 -8 ------- Run | Yrd Mat Sub Mat Traps Triggered . | . . . . Indirectly . | . . . . Trap Hack Attempts . | . . . . Triggered . | . . . . Disarmed . | . . . . Reprogrammed . | . . . . Reused . | . . . . Traps Extracted . | . . . . Installed . | . . . . Triggered . | . . . . Machines | -11 -10 -10 -8 ---------- Run | Yrd Mat Sub Mat Machines Disabled . | . . . . Max in Single Turn . | . . . . Machines Repaired . | . . . . Machines Dismantled . | . . . . Machines Sabotaged . | . . . . Overloaded Fab Kills . | . . . . Hacking | -11 -10 -10 -8 --------- Run | Yrd Mat Sub Mat Machines Accessed 5 | . 4 . 1 Terminals 4 | . 3 . 1 Fabricators . | . . . . Repair Stations . | . . . . Recycling Units 1 | . 1 . . Scanalyzers . | . . . . Garrison Access . | . . . . Total Hacks 22 | . 16 . 6 Successful 15 | . 12 . 3 Failed 6 | . 4 . 2 Catastrophic . | . . . . Database Lockouts 1 | . . . 1 Manual 1 | . 1 . . Terminals 20 | . 14 . 6 Fabricators . | . . . . Repair Stations . | . . . . Recycling Units 2 | . 2 . . Scanalyzers . | . . . . Garrison Access . | . . . . Terminal Hacks 13 | . 10 . 3 Record 3 | . . . 3 Prototype ID Bank 1 | . 1 . . Branch Access Points 1 | . 1 . . Terminal Index 1 | . 1 . . Alert Level 2 | . 2 . . Patrol Status 1 | . 1 . . Recall Investigation 1 | . 1 . . Hauler Manifests 2 | . 2 . . Zone Layout 1 | . 1 . . Fabricator Hacks . | . . . . Repair Station Hacks . | . . . . Recycling Unit Hacks 2 | . 2 . . Report Inventory 1 | . 1 . . Retrieve Matter 1 | . 1 . . Scanalyzer . | . . . . Garrison Access Hacks . | . . . . Unauthorized Hacks . | . . . . Terminals . | . . . . Fabricators . | . . . . Repair Stations . | . . . . Recycling Units . | . . . . Scanalyzers . | . . . . Garrison Access . | . . . . Data Cores Recovered . | . . . . Used . | . . . . Hacking Detections 3 | . 2 . 1 Full Trace Events 1 | . . . 1 Feedback Events . | . . . . Feedback Blocked . | . . . . Robot Schematics Acquired . | . . . . Robots Built . | . . . . Authchips . | . . . . Time . | . . . . Total Robot Build Rating . | . . . . Part Schematics Acquired . | . . . . Parts Built . | . . . . Authchips . | . . . . Time . | . . . . Total Part Build Rating . | . . . . Parts Repaired . | . . . . Time . | . . . . Parts Recycled . | . . . . Recycled Matter . | . . . . Retrieved Matter . | . . . . Retrieved Components . | . . . . Parts Scanalyzed . | . . . . Part Schematics Acquired . | . . . . Parts Damaged . | . . . . Bothacking | -11 -10 -10 -8 ------------ Run | Yrd Mat Sub Mat Used RIF Installer . | . . . . Robots Hacked . | . . . . Non-combat . | . . . . Combat . | . . . . Robot Hacks Applied . | . . . . Relay Couplers Released . | . . . . Fabnet Peak Effective % . | . . . . Robots Rewired . | . . . . Allies Hacked . | . . . . Hacks Repelled . | . . . . Allies | -11 -10 -10 -8 -------- Run | Yrd Mat Sub Mat Total Allies . | . . . . Largest Group . | . . . . Highest-Rated Group . | . . . . Highest-Rated Ally . | . . . . Total Orders . | . . . . Ally Attacks . | . . . . Total Damage . | . . . . Kills . | . . . . Allies Corrupted . | . . . . Allies Melted . | . . . . Intel | -11 -10 -10 -8 ------- Run | Yrd Mat Sub Mat Robot Analysis Total . | . . . . Derelict Logs Recovered . | . . . . Drone Launches . | . . . . Drone Recoveries . | . . . . Exploration | -11 -10 -10 -8 ------------- Run | Yrd Mat Sub Mat Turns Passed 1365 | 164 820 239 142 Spaces Moved 789 | 92 362 216 119 Core 197 | 15 . 140 42 Treads . | . . . . Legs 515 | 77 362 76 . Wheels 77 | . . . 77 Hover . | . . . . Flight . | . . . . Fastest Speed 50 | 50 120 50 50 Average Speed 105 | 120 120 88 80 Slowest Speed 150 | 150 120 150 150 Overloaded Moves . | . . . . Propulsion Burnouts . | . . . . Robots Hopped . | . . . . Cave-ins Triggered . | . . . . Exploration Rate (%) 18 | 5 40 14 14 Regions Visited 3 Branch Regions 1 Pre-discovered Areas . | . . . . Known Exits Taken . | . . . . Unknown Exits Taken 3 | 1 1 1 . Scrap Searched . | . . . . Spaces Dug 15 | . 15 . . Terrain Destroyed 15 | . 15 . . Melee . | . . . . Projectile 15 | . 15 . . AOE . | . . . . Terrain Rammed . | . . . . Walls Destroyed . | . . . . Machines Disabled . | . . . . Actions | -11 -10 -10 -8 --------- Run | Yrd Mat Sub Mat Total 1188 | 122 672 239 155 Wait 276 | . 266 . 10 Move 786 | 91 361 215 119 Hop . | . . . . Pick Up 24 | 12 4 . 8 Fast Attach 2 | 2 . . . Attach 18 | 5 . 7 6 Detach 1 | . . . 1 Swap 7 | . 5 1 1 Drop 4 | . 4 . . Fire 68 | 12 32 14 10 Melee . | . . . . Ram 2 | . . 2 . Kick . | . . . . Crush . | . . . . Escape Stasis . | . . . . Rewire . | . . . . Trap . | . . . . Miscellaneous . | . . . . Route ------- -11/Scrapyard -10/Materials (discovered 4 exits: [*Mat] / *Min x2 / [*Sub]) -10/Subcaves -8/Materials History --------- Turn | Location | Event 8 | -11/Scrapyard | Discovered new exit (range 15) 165 | -11/Scrapyard | Entered Materials 300 | -10/Materials | Build established: Mutant 472 | -10/Materials | Discovered new exit (range 5) 602 | -10/Materials | Discovered new exit (range 15) 621 | -10/Materials | Identified exit to Mines 958 | -10/Materials | Discovered new exit (range 4) 985 | -10/Materials | Entered Subcaves 1102 | -10/Subcaves | Core integrity fell below 50% 1116 | -10/Subcaves | Ambushed by Subdweller buried in earth 1129 | -10/Subcaves | Core integrity fell below 20% 1159 | -10/Subcaves | Lost 9 parts (2p2n2u3w) 1221 | -10/Subcaves | Discovered new exit (range 3) 1224 | -10/Subcaves | Entered Materials 1224 | -8/Materials | Evolved 4 slots: Utility x2, Weapon x2 1293 | -8/Materials | Central database locked down 1363 | -8/Materials | Core integrity fell below 50% 1366 | -8/Materials | Self-destructed Last Messages --------------- 01302_ Acquired Imp. Sensor Array. 01316_ Hvy. Particle Gun blasted off. 01316_ Knocked back. 01320_ K-01 Serf collects debris. 01321_ Wheel destroyed. 01323_ Lrg. Matter Pod destroyed. 01323_ Imp. Sensor Array destroyed. 01328_ Acquired Ion Cannon. 01331_ Knocked back. 01333_ H-61 Shepherd calls for reinforcements. 01333_ ALERT: Hostile activity reported, dispatching reinforcements to area. 01335_ Med. Matter Pod destroyed. 01335_ Critical hit (Blast). 01335_ Knocked back. 01336_ Acquired 9 matter. 01343_ Y-45 Defender destroyed. 01362_ Penetrated by Slug. 01362_ Ion Cannon destroyed. 01362_ Knocked back. Map ----- +----------------------------------------------------+ | ?????????????????????????????## #??? | | ?????????????????????? #??? | | ????????????????????????# ######+##### #??? | | ???????????????????????????# # #??? | | ????????????????????????? ?? """ + #??? | | ????????????????????????# ?? """"" ### #??? | | ????????????????????????# ??? """"" #?# #??? | | ???????????????????????## ## """"" #?# #??? | | ??????????????????????? # """ #?# #??? | | ???????????????????????# # #?# #??? | | ???????????????????????# ^ # #?# #??? | | ???????????????????????# #############+##?? | | ???????????????????????# #?# #?? | | ???????????????????????# #?# ""#?? | | ?????????????????????### ### """ T"#?? | | ???????????? ????????# # """ ""#?? | | ???????????? ! ####### # """ #?? | | ???????????? # % """ #?? | | ??????????? [+ #?? | | ???????????? = " """ """ #?? | | ????????????????##+### % H # """ """ #?? | | ?????????????????????# *== # """ """ #?? | | ?????????????????????####%[### """ """ #?? | | ??????????????????????# ![! # #?? | | ??????????????????????# % ##############?? | | ??????????????????????# @ #??????????????? | | ??????????????????????# #??????????????? | | ??????????????????????# #??????????????? | | ??????????????????????# #??????????????? | | ??????????????????????# #??????????????? | | ??????????????????????# #??????????????? | | ??????????????????????# % #??????????????? | | ??????????????????????# % #??????????????? | | ??????????????????????#% #??????????????? | | ??????????????????????# #??????????????? | | ??????????????????????# #??????????????? | | ??????????????????????######;;#?????????????? | | ???????????????????????????? ##?????????????? | | ????????????????????????????# ??????????????? | | ?????????????????????????????##?????????????? | | ????????????????????????????????????????????? | | ????????????????????????????????????????????? | | ????????????????????????????????????????????? | | ????????????????????????????????????????????? | | ????????????????????????????????????????????? | | ????????????????????????????????????????????? | | ????????????????????????????????????????????? | | ????????????????????????????????????????????? | | ????????????????????????????????????????????? | | ????????????????????????????????????????????? | +----------------------------------------------------+ Best States ------------- Heat Dissipation 31 Energy Generation 10 Energy Capacity 250 Matter Stores 300 Matter Capacity 550 Sight Range 16 Robot Scan Range 15 Terrain Scan Density 10 Additional Mass Support 6 Evasion (%) 55 Defensive Hacking 10 Item Schematics ----------------- None Robot Schematics ------------------ None Fabricated ------------ Nothing Alien Tech Used ----------------- None Achievements -------------- Close Call Shopping List Challenges ------------ None Game ------ Seed TacticalConstructPick Manual? 0 Play Time 00:37:11 Cumulative 5.9 hours Start 2024.10.08 @ 00:17:44 End 2024.10.08 @ 00:48:03 Sessions 1 Manual Loads 0 Difficulty Rogue Special Mode None Game No. 7 Rogue 7 Adventurer 0 Explorer 0 Win Type - Total 0 Types 0/0/0/0/0/0/0/0/0 Lore% 5 Gallery% 11 Achievement% 17 Wizard Run 0 Options --------- Layout 1 ASCII 0 Keyboard 0 Movement Mouse Keybinds 0 Fullscreen 2 Font 24/Smallcaps Map View 50x35 Zoom Use 0% Tactical HUD 1 Map Filters NONE Filters NONE Steam 1 RUN: db5e6659-93d5-4914-9130-9181a2cf0894